Cogmind - Beta 12 @@@ ROGUE MODE // 2023.09.16 @ 17:59:11 Player: DuckBoy Result: Destroyed by P-70 Sage with Tesla Rifle Performance ------------- Evolutions (5) 2500 Regions Visited (16) 3200 Robots Destroyed (262) 1310 Value Destroyed (11391) 11391 Prototype IDs (33) 660 Alien Tech Used (0) 0 Bonus (10784) 10784 TOTAL SCORE: 29845 Bonus ------- High Alert Combat Kills 1815 Follower Combat Kills 5321 Entered Garrisons 1000 Used RIF Installer 3000 Aligned with FarCom 300 Friendly Fire -652 Cogmind --------- Core Integrity 0/1000 Matter 112/300 Energy 99/100 System Corruption 60% Temperature Cool (0) Movement Core (50) Location -5/Factory Parts ------- > --- POWER (1) -------- (None) > --- PROPULSION (6) --- Heavy Treads > --- UTILITY (8) ------ Graphene Brace > --- WEAPON (2) ------- (None) > --- INVENTORY (5) ---- Micro Fission Core Relay Coupler [Behemoth] (10) Heavy Phase Cannon Peak State ------------ > --- POWER ------------ Light Quantum Reactor > --- PROPULSION ------- Light Treads Armored Treads Improved Heavy Treads Improved Heavy Treads > --- UTILITY ---------- Huge Storage Unit Graphene Brace Hacking Suite Improved Hacking Suite Improved System Shield Relay Coupler [Grunt] Relay Coupler [Sentry] Relay Coupler [Hunter] > --- WEAPON ----------- Hypervelocity Railgun Tesla Bomb Launcher > --- INVENTORY -------- Reinforced Deuterium Engine Particle Reactor Medium Treads Armored Medium Treads Armored Medium Treads Biometal Medium Treads Biometal Medium Treads Advanced Cooling System Advanced Cooling System High-capacity Storage Unit Hacking Suite Relay Coupler [Demolisher] Relay Coupler [Behemoth] Relay Coupler [Proto] System Restoration Module Advanced Plasma Rifle Advanced Plasma Rifle Heavy Linear Accelerator Remote Datajack Impact Mace [Rating: 101] Favorites ----------- Power F-cell Engine Engine F-cell Engine Power Core Micro Nuclear Core Reactor Light Quantum Reactor Propulsion Light Treads Treads Light Treads Leg Carbon-fiber Leg Wheel Compact Wheel Hover Unit Cooled Aerolev Unit Utility Hacking Suite Device Graphene Brace Storage Huge Storage Unit Processor Advanced Visual Processing Unit Hackware Hacking Suite Protection Reflective Plating Weapon Minigun Energy Gun Advanced Plasma Rifle Energy Cannon Guided Plasma Cannon Ballistic Gun Minigun Ballistic Cannon Advanced Assault Cannon Launcher Grenade Launcher Special Weapon Remote Datajack Impact Weapon Power Maul Slashing Weapon Chainsword Build | -11 -10 -10 -10 -9 -8 -8 -8 -7 -7 -7 -7 -6 -6 -6 -6 -5 ------- Run | Jun Mat Min Exi Min Mat Gar Mat Fac Gar Fac Gar Fac Gar Fac Gar Fac Slots Evolved 10 | . . . . . 4 . . 2 . . . 2 . . . 2 Power . | . . . . . . . . . . . . . . . . . Propulsion 4 | . . . . . 3 . . . . . . . . . . 1 Utility 6 | . . . . . 1 . . 2 . . . 2 . . . 1 Weapon . | . . . . . . . . . . . . . . . . . Parts Attached 359 | 6 1 6 3 1 12 33 22 67 12 52 4 42 33 3 16 46 Power 24 | 1 . 1 . . 1 1 4 3 . 3 . 1 4 . 1 4 Engine 15 | 1 . 1 . . 1 1 3 1 . 2 . 1 2 . . 2 Core 3 | . . . . . . . 1 2 . . . . . . . . Reactor 6 | . . . . . . . . . . 1 . . 2 . 1 2 Propulsion 90 | 2 . 2 2 . 6 7 11 11 . 10 2 12 7 1 6 11 Treads 76 | 2 . 1 2 . 6 2 6 10 . 8 2 12 7 1 6 11 Leg 9 | . . 1 . . . 5 1 1 . 1 . . . . . . Wheel 4 | . . . . . . . 4 . . . . . . . . . Hover 1 | . . . . . . . . . . 1 . . . . . . Flight . | . . . . . . . . . . . . . . . . . Utility 104 | 1 1 1 1 . 2 6 1 32 3 23 2 13 6 . 4 8 Device 34 | . 1 1 . . 1 1 . 9 3 5 1 6 2 . 1 3 Storage 9 | 1 . . 1 . . 1 1 1 . 3 . . . . . 1 Processor 1 | . . . . . . . . 1 . . . . . . . . Hackware 55 | . . . . . 1 . . 21 . 15 1 7 3 . 3 4 Protection 5 | . . . . . . 4 . . . . . . 1 . . . Artifact . | . . . . . . . . . . . . . . . . . Weapon 141 | 2 . 2 . 1 3 19 6 21 9 16 . 16 16 2 5 23 Energy Gun 17 | . . . . . . . . . . 1 . . 6 . 4 6 Energy Cannon 20 | . . . . . . 6 . 5 5 4 . . . . . . Ballistic Gun 34 | 2 . 1 . 1 3 9 5 9 2 1 . . . . . 1 Ballistic Cannon 8 | . . . . . . . . . . . . 4 2 . . 2 Launcher 24 | . . 1 . . . 4 1 4 1 . . 1 2 1 . 9 Special Weapon 23 | . . . . . . . . 3 1 5 . 4 4 1 1 4 Impact Weapon 7 | . . . . . . . . . . 1 . 4 1 . . 1 Slashing Weapon 8 | . . . . . . . . . . 4 . 3 1 . . . Piercing Weapon . | . . . . . . . . . . . . . . . . . Special Melee Weapon . | . . . . . . . . . . . . . . . . . Unidentified Prototypes 10 | . . . . . . . 1 . . 6 . 2 . . . 1 Corrupted Parts 4 | . . . . . . . . . . . . . . . 2 2 System Corruption 17 | . . . . . . . . . . . . . . . 5 12 Parts Lost 83 | . . 3 . . 3 7 5 10 . 6 . 11 7 . 1 30 Power 11 | . . . . . . 1 2 1 . 1 . . 2 . . 4 Propulsion 36 | . . 1 . . 3 4 1 6 . 4 . 6 1 . 1 9 Utility 18 | . . . . . . 1 . 1 . . . 4 3 . . 9 Weapon 18 | . . 2 . . . 1 2 2 . 1 . 1 1 . . 8 Highest Loss Streak 15 | . . 1 . . 2 5 1 4 . 2 . 2 5 . 1 15 To Critical Strikes . | . . . . . . . . . . . . . . . . . Average Slot Usage (%) 92 | . 96 93 82 85 85 85 82 92 91 96 100 97 97 99 95 79 Engine 4 | . 14 14 14 14 9 5 6 . . 5 7 6 1 . . . Core 1 | . . . . . . . 1 6 7 1 . . . . . . Treads 30 | . 28 14 22 28 41 18 18 37 38 32 38 32 32 32 29 21 Leg 3 | . . 10 2 . . 25 20 . . 2 . . . . . . Device 2 | . 10 10 . . . . . 1 1 . 1 3 10 13 6 5 Storage 7 | . 14 14 14 14 9 9 13 7 7 6 7 6 6 6 6 4 Processor 1 | . . . . . . . . 5 . . . . . . . . Hackware 21 | . . . . . 8 5 . 15 23 27 28 34 27 26 32 29 Energy Gun 1 | . . . . . . . . . 2 . . . 7 11 9 6 Ballistic Gun 5 | . 28 16 14 14 14 11 17 12 1 . . . . . . . Launcher 1 | . . 10 14 14 3 2 . . 3 . . . 2 1 . . Special Weapon 2 | . . . . . . . . . . 5 7 3 . . 2 1 Impact Weapon 1 | . . . . . . . . . . 3 7 3 . . . . Naked Turns . | . . . . . . . . . . . . . . . . . Heaviest Build 231 | 14 15 16 54 50 50 206 231 219 63 105 99 109 113 113 121 124 Greatest Support 190 | 40 40 40 40 40 103 103 102 116 116 124 108 118 150 150 170 190 Greatest Overweight (x) 14 | 1 . . 2 1 1 3 14 1 . 3 . 1 . . . 3 Average Overweight (x) . | . . . . 1 . . 2 . . . . . . . . . Largest Inventory Capacity 35 | 8 8 8 20 20 20 35 35 35 20 25 25 25 25 25 25 25 Average Capacity 23 | 7 8 8 18 20 20 24 35 23 20 22 25 25 25 25 25 23 Most Carried 35 | 3 8 8 9 12 17 35 35 35 20 25 25 25 25 25 25 25 Average Carried 20 | 1 4 7 7 10 11 23 34 18 16 16 22 23 24 24 24 19 Final Capacity 35 | 8 8 8 20 20 20 35 35 20 20 25 25 25 25 25 25 5 Final Carried 35 | 3 8 8 9 12 17 35 35 11 20 16 25 25 25 24 25 3 Class Distribution -------------------- 26% | Commander-Mutant 24% | Botlord-Mutant 15% | Bothacker-Mutant 11% | Hauler-Mutant 10% | Scavenger-Mutant 8% | Mutant Dominant Class ---------------- Mutant | -10/Materials Mutant | -10/Mines Mutant | -10/Exiles Mutant | -9/Mines Scavenger-Mutant | -8/Materials Scavenger-Mutant | -8/Garrison Hauler-Mutant | -8/Materials Commander-Mutant | -7/Factory Commander-Mutant | -7/Garrison Bothacker-Mutant | -7/Factory Commander-Mutant | -7/Garrison Botlord-Mutant | -6/Factory Bothacker-Mutant | -6/Garrison Botlord-Mutant | -6/Factory Botlord-Mutant | -6/Garrison Botlord-Mutant | -5/Factory Resources | -11 -10 -10 -10 -9 -8 -8 -8 -7 -7 -7 -7 -6 -6 -6 -6 -5 ----------- Run | Jun Mat Min Exi Min Mat Gar Mat Fac Gar Fac Gar Fac Gar Fac Gar Fac Matter Collected 8306 | 200 280 149 . 37 265 775 787 1509 89 796 80 937 926 82 492 902 Remotely . | . . . . . . . . . . . . . . . . . Salvage Created 9170 | . 385 81 . . 522 795 1252 1698 . 851 60 945 863 . 46 1672 Parts 433 | . 25 11 . . 29 47 66 86 . 32 1 45 21 . 2 68 Haulers Intercepted 6 | . 2 . . . . . 3 . . 1 . . . . . . Recyclers Shooed 6 | . . . . . . . 1 1 . . . 1 . . . 3 Parts Field Recycled . | . . . . . . . . . . . . . . . . . Retrieved Matter . | . . . . . . . . . . . . . . . . . Parts Self-Destructed . | . . . . . . . . . . . . . . . . . Prevented . | . . . . . . . . . . . . . . . . . Kills | -11 -10 -10 -10 -9 -8 -8 -8 -7 -7 -7 -7 -6 -6 -6 -6 -5 ------- Run | Jun Mat Min Exi Min Mat Gar Mat Fac Gar Fac Gar Fac Gar Fac Gar Fac Combat Hostiles Destroyed 201 | . 8 10 . . 12 25 16 26 . 14 1 19 31 . 1 38 Melee 18 | . . . . . . . . . . 7 1 6 1 . 1 2 Guns 65 | . 8 1 . . 5 7 14 17 . . . . 7 . . 6 Cannons 32 | . . . . . . 5 . 6 . 5 . 10 . . . 6 AOE 77 | . . 9 . . 7 13 2 3 . . . . 22 . . 21 Classes Destroyed 21 | . 5 2 . . 4 1 1 2 . 1 . 1 1 . . 3 Worker 17 | . 1 . . . . . 3 5 . 2 . 2 . . . 4 Builder 5 | . . . . . 1 . 1 1 . . . . . . . 2 Tunneler 2 | . . . . . 1 . . . . . . 1 . . . . Hauler 6 | . 2 . . . . . 3 . . 1 . . . . . . Recycler 10 | . . . . . . . 4 2 . 1 . 1 . . . 2 Mechanic 1 | . . . . . . . . . . . . 1 . . . . Operator 5 | . 1 . . . . . . 3 . . 1 . . . . . Watcher 14 | . . . . . 1 . 2 5 . 3 . 2 1 . . . Swarmer 54 | . 3 7 . . 4 9 3 . . 2 . 5 10 . . 11 Cutter 3 | . . . . . . . . . . . . . 3 . . . Saboteur 1 | . . . . . . . . . . . . . . . . 1 Grunt 70 | . 5 . . . 7 7 8 14 . 1 1 1 14 . 1 11 Brawler 2 | . . . . . . . . . . . . . . . . 2 Duelist 5 | . . . . . . . . 1 . . . . 1 . . 3 Sentry 20 | . . . . . 2 6 4 2 . 2 . 4 . . . . Demolisher 2 | . . 1 . . . 1 . . . . . . . . . . Specialist 4 | . . . . . . . . . . 1 . . . . . 3 Hunter 11 | . . . . . . 2 1 2 . 2 . 3 . . . 1 Programmer 27 | . . . . . . . . 7 . 6 . 6 3 . . 5 Heavy 1 | . . . . . . . . . . . . . . . . 1 Assembled 2 | . . 2 . . . . . . . . . . . . . . Thug 2 | . . . . . 2 . . . . . . . . . . . Best Kill Streak 13 | . 8 4 . . 8 5 6 8 . 3 1 5 10 . 1 13 Combat Bots Only 12 | . 8 4 . . 7 5 3 7 . 3 1 5 10 . 1 12 Max Kills in Single Turn 5 | . 1 3 . . 2 3 4 3 . 1 1 1 3 . 1 5 Gunslinging . | . . . . . . . . . . . . . . . . . Exploded 5 | . . 3 . . 2 3 2 2 . . . . 3 . . 5 Melee 1 | . . . . . . . . . . 1 1 1 1 . 1 1 Uniques/NPCs Destroyed . | . . . . . . . . . . . . . . . . . Combat | -11 -10 -10 -10 -9 -8 -8 -8 -7 -7 -7 -7 -6 -6 -6 -6 -5 -------- Run | Jun Mat Min Exi Min Mat Gar Mat Fac Gar Fac Gar Fac Gar Fac Gar Fac Damage Taken 18785 | . 310 395 . . 514 1463 1562 2028 143 1907 174 2859 1567 55 183 5625 Core 2453 | . 48 92 . . 39 217 108 127 23 349 30 276 130 . 7 1007 Absorbed by Shields 438 | . . . . . . . . . . . . 249 . . 143 46 Regen/Repaired (Parts) 2606 | . . . . . . . . 461 44 448 30 1022 309 292 . . Core Remaining (%) 50 | 100 . . . 44 . . 33 . . . 24 . . . 51 . Volleys Fired 858 | . 35 14 . . 37 75 82 142 24 79 6 98 90 5 55 116 Largest 2 | . 2 2 . . 2 2 2 2 1 1 1 1 2 1 2 2 Hottest 182 | . 40 50 . . 43 138 61 120 120 120 5 48 176 5 176 182 Shots Fired 1182 | . 70 16 . . 62 109 164 239 24 78 6 97 108 7 64 138 Gun 735 | . 70 7 . . 50 58 160 188 1 24 . . 53 2 42 80 Cannon 200 | . . . . . . 26 . 34 22 24 . 65 8 . . 21 Launcher 114 | . . 9 . . 12 25 4 10 1 . . . 32 . . 21 Special 133 | . . . . . . . . 7 . 30 6 32 15 5 22 16 Kinetic 658 | . 70 7 . . 50 58 160 188 1 1 . 65 8 . . 50 Thermal 261 | . . . . . . 10 . 34 22 47 . . 53 2 42 51 Explosive 81 | . . 9 . . 12 14 . 2 . . . . 32 . . 12 Electromagnetic 49 | . . . . . . 27 4 8 1 . . . . . . 9 Robot Hit Streak 23 | . 23 5 . . 7 8 14 18 6 12 10 13 12 5 5 12 Robot Miss Streak 6 | . 3 3 . . 2 3 5 5 . 3 . 6 4 1 1 3 Penetration Max 2 | . . . . . . . . . . . . . . . . 2 Secondary Targets 6 | . 2 . . . . . 3 1 . . . . . . . . Max Gunslinging Chain 1 | . 1 . . . . . 1 1 . . . . . . . . Shots Hit Robots 732 | . 55 5 . . 35 56 111 134 2 75 8 85 59 5 21 81 Core Hits 420 | . 19 13 . . 37 37 44 74 . 19 1 28 57 . 1 90 Critical Kills 6 | . . . . . . . . . . . 1 . . . . 5 Critical Parts Destroyed 19 | . . . . . . . . . . 2 2 6 3 . . 6 Critical Strikes 43 | . . . . . . . . 1 . 5 3 14 4 1 . 15 Burn 1 | . . . . . . . . . . . . . . 1 . . Destroy 11 | . . . . . . . . 1 . . . . . . . 10 Blast 4 | . . . . . . . . . . . . 2 1 . . 1 Smash 18 | . . . . . . . . . . 2 3 6 3 . . 4 Sever 9 | . . . . . . . . . . 3 . 6 . . . . Melee Attacks 169 | . . . . . . . . . . 65 19 68 10 . . 7 Impact 93 | . . . . . . . . . . 28 19 30 9 . . 7 Slashing 76 | . . . . . . . . . . 37 . 38 1 . . . Piercing . | . . . . . . . . . . . . . . . . . Sneak Attacks 6 | . . . . . . . . . . 1 1 4 . . . . Combat Hostiles 1 | . . . . . . . . . . . . 1 . . . . Follow-up Attacks . | . . . . . . . . . . . . . . . . . Damage Inflicted 27506 | . 684 395 . . 1150 2065 2123 4532 91 2271 189 2737 4592 28 180 6469 Guns 7856 | . 684 28 . . 420 580 1840 2192 . 163 . . 745 28 140 1036 Cannons 4554 | . . . . . . 463 . 986 91 877 . 947 65 . . 1125 Explosions 11055 | . . 353 . . 723 1022 205 1305 . . . . 3499 . . 3948 Melee 3621 | . . . . . . . . . . 1178 189 1765 268 . . 221 Ramming 420 | . . 14 . . 7 . 78 49 . 53 . 25 15 . 40 139 Kinetic 8077 | . 684 28 . . 420 580 1840 2192 . . . 947 65 . . 1321 Thermal 4907 | . . . . . . 325 66 1438 91 1040 . . 745 28 140 1034 Explosive 8468 | . . 353 . . 723 744 . 644 . . . . 3499 . . 2505 Electromagnetic 2013 | . . . . . . 416 139 209 . . . . . . . 1249 Impact 1774 | . . . . . . . . . . 266 189 830 268 . . 221 Slashing 1847 | . . . . . . . . . . 912 . 935 . . . . Piercing . | . . . . . . . . . . . . . . . . . Highest Corruption 60 | . . . . . . . 1 2 2 5 1 1 7 12 17 60 Average Corruption 5 | . . . . . . . 1 1 1 1 1 1 6 10 13 17 Corruption Purged 18 | . . . . . . . . 8 2 5 1 2 . . . . Corruption Blocked . | . . . . . . . . . . . . . . . . . Effects 312 | . . . . . . . 6 7 5 65 1 11 48 18 105 46 Message Errors 84 | . . . . . . . 3 5 3 18 1 4 16 2 23 9 Matter Fused 65 | . . . . . . . . . . 14 . 2 7 6 26 10 Heat Flow Errors 26 | . . . . . . . . 1 . 6 . 2 6 1 10 . Energy Discharges 49 | . . . . . . . 1 . 2 14 . 2 5 4 17 4 Parts Rejected 3 | . . . . . . . . . . . . . 1 . . 2 Parts Fused 5 | . . . . . . . . . . . . . . . 4 1 Data Loss (minor) 35 | . . . . . . . 1 . . 8 . . 6 2 12 6 Data Loss (major) 8 | . . . . . . . 1 . . 1 . . 3 . 2 1 Misfires 9 | . . . . . . . . 1 . 1 . . 2 2 2 1 Alerts 12 | . . . . . . . . . . 2 . . 1 1 6 2 Misdirections 7 | . . . . . . . . . . . . . . . 2 5 Weapon Failures 9 | . . . . . . . . . . 1 . 1 1 . 1 5 Overload Shots . | . . . . . . . . . . . . . . . . . Overflow Damage 1778 | . . 24 . . . 84 15 285 5 173 141 601 271 . . 179 Projectiles 168 | . . . . . . 28 . 41 5 . . 39 . . . 55 Explosions 446 | . . 24 . . . 56 . 244 . . . . 91 . . 31 Melee 1164 | . . . . . . . 15 . . 173 141 562 180 . . 93 Knockbacks 24 | . . . . . . . . . . . 1 10 3 . . 10 Impact 9 | . . . . . . . . . . . 1 4 1 . . 3 Kinetic 11 | . . . . . . . . . . . . 4 2 . . 5 Secondary 4 | . . . . . . . . . . . . 2 . . . 2 Self-Inflicted Damage 1205 | . . 105 . . 49 143 50 380 . . . . 268 . . 210 Shots 37 | . . 6 . . 2 7 1 9 . . . . 5 . . 7 Rammed 37 | . 1 3 . 1 1 . 5 7 . 1 . 2 1 . 1 14 Targets Rammed 45 | . 1 3 . 1 1 . 6 9 . 2 . 3 1 . 2 16 Kicked . | . . . . . . . . . . . . . . . . . Crushed 8 | . . . . . . . 1 2 . 1 . 1 . . 1 2 Highest Temperature 430 | . . 24 . . 22 210 124 330 132 430 . 200 309 192 232 396 Average Temperature 84 | . . 8 . . 9 61 35 100 51 134 . 81 115 114 67 69 Received Heat Transfer 3094 | . 96 . . . 243 261 594 516 30 135 72 225 309 . 34 579 Effects 5 | . . . . . . . . 1 . 1 . . . . . 3 Shutdowns 2 | . . . . . . . . . . 1 . . . . . 1 Energy Bleed 3 | . . . . . . . . 1 . . . . . . . 2 Siege Activations . | . . . . . . . . . . . . . . . . . Robots Corrupted 2 | . . . . . . . . . . . . . . . . 2 Combat Hostiles 2 | . . . . . . . . . . . . . . . . 2 Parts Fried 21 | . . . . . . 1 1 . . 2 1 8 . . . 8 Impact Corruptions 37 | . . . . . . . 1 . . 6 4 18 5 . . 3 Robots Melted 1 | . . . . . . . . . . 1 . . . . . . Combat Hostiles 1 | . . . . . . . . . . 1 . . . . . . Parts Melted 28 | . . . . . 1 1 . 13 . 9 . . 1 . 1 2 Heat Transferred 8824 | . . . . . . 610 100 2510 160 2220 . . 1250 150 250 1574 Parts Sabotaged 4 | . . . . . . . . . . . . . . . . 4 Parts Stolen . | . . . . . . . . . . . . . . . . . Parts Stripped . | . . . . . . . . . . . . . . . . . Power Chain Reactions 8 | . . . . . . 2 2 2 . . . . . . . 2 Missiles Intercepted . | . . . . . . . . . . . . . . . . . Alert | -11 -10 -10 -10 -9 -8 -8 -8 -7 -7 -7 -7 -6 -6 -6 -6 -5 ------- Run | Jun Mat Min Exi Min Mat Gar Mat Fac Gar Fac Gar Fac Gar Fac Gar Fac Peak Influence 1720 | . 237 119 . . 324 1096 534 850 840 430 448 308 1364 740 1720 1392 Initial 903 | . . 2 . . . 176 534 144 595 430 107 235 91 716 504 903 Average 393 | . 84 26 . . 208 769 226 233 723 163 215 88 760 720 1107 1184 Maximum Alert Level 5 | . 1 . . . 1 3 2 3 3 2 2 1 4 3 5 4 Low Security (%) 51 | 100 95 100 . 100 30 2 42 52 . 86 48 91 21 . . . Level 1 17 | . 4 . . . 69 12 55 42 . 6 39 8 5 . . . Level 2 6 | . . . . . . 22 2 . 34 6 11 . 16 . 13 . Level 3 13 | . . . . . . 63 . 3 65 . . . 20 100 31 28 Level 4 9 | . . . . . . . . . . . . . 35 . 49 71 Level 5 . | . . . . . . . . . . . . . . . 6 . High Security . | . . . . . . . . . . . . . . . . . Max Security . | . . . . . . . . . . . . . . . . . Squads Dispatched 81 | . 1 1 . . 4 . 2 19 . 20 . 17 . . . 17 Investigation 14 | . 1 . . . 1 . . 3 . 2 . 4 . . . 3 Extermination 33 | . . . . . . . . 12 . 8 . 11 . . . 2 Reinforcement 10 | . . . . . . . 2 4 . 1 . . . . . 3 Assault 9 | . . 1 . . . . . . . . . . . . . 8 Garrison 15 | . . . . . 3 . . . . 9 . 2 . . . 1 Intercept . | . . . . . . . . . . . . . . . . . Searches Triggered . | . . . . . . . . . . . . . . . . . Construction Impeded 5 | . . . . . . . 1 3 . . . . . . . 1 Haulers Reinforced . | . . . . . . . . . . . . . . . . . Active Scanning Responses . | . . . . . . . . . . . . . . . . . Cargo Convoy Interrupts 3 | . . . . . . . . . . 1 . 1 . . . 1 Alert ID Control Effect 136 | . . . . . . . . 12 21 28 33 25 5 . 5 7 Stealth | -11 -10 -10 -10 -9 -8 -8 -8 -7 -7 -7 -7 -6 -6 -6 -6 -5 --------- Run | Jun Mat Min Exi Min Mat Gar Mat Fac Gar Fac Gar Fac Gar Fac Gar Fac Distress Signals 18 | . . . . . 2 . 5 1 . 3 2 1 . . . 4 Communications Jammed 51 | . . . . . . . . . . . . 35 . . . 16 Distress Signals 51 | . . . . . . . . . . . . 35 . . . 16 Times Spotted 409 | . 10 22 . . 13 27 21 50 20 25 20 49 41 4 19 88 Peak Tracking Total 15 | . 7 14 . . 6 6 4 6 3 4 6 11 5 2 3 15 Tactical Retreats 17 | . 2 1 . . . 1 2 1 . 1 . . 2 . . 7 Traps | -11 -10 -10 -10 -9 -8 -8 -8 -7 -7 -7 -7 -6 -6 -6 -6 -5 ------- Run | Jun Mat Min Exi Min Mat Gar Mat Fac Gar Fac Gar Fac Gar Fac Gar Fac Traps Triggered 20 | . . . . . . 6 . 3 1 3 . . 1 1 2 3 Indirectly 4 | . . . . . . 2 . . 1 . . . . . . 1 Trap Hack Attempts . | . . . . . . . . . . . . . . . . . Triggered . | . . . . . . . . . . . . . . . . . Disarmed . | . . . . . . . . . . . . . . . . . Reprogrammed 4 | . . . . . . . . . . . . 4 . . . . Reused . | . . . . . . . . . . . . . . . . . Traps Extracted . | . . . . . . . . . . . . . . . . . Installed . | . . . . . . . . . . . . . . . . . Triggered 2 | . . . . . . . . . . . . . . . . 2 Machines | -11 -10 -10 -10 -9 -8 -8 -8 -7 -7 -7 -7 -6 -6 -6 -6 -5 ---------- Run | Jun Mat Min Exi Min Mat Gar Mat Fac Gar Fac Gar Fac Gar Fac Gar Fac Machines Disabled 67 | . . 1 . . . 3 2 29 1 1 6 2 6 . 4 12 Max in Single Turn 19 | . . 1 . . . 1 1 19 1 1 1 . 1 . 1 2 Garrison Access 2 | . . . . . . . . . . 1 . . . . . 1 Garrison Relay 9 | . . . . . . 1 . . 2 . 3 . 2 . 1 . Machines Repaired . | . . . . . . . . . . . . . . . . . Machines Sabotaged . | . . . . . . . . . . . . . . . . . Overloaded Fab Kills . | . . . . . . . . . . . . . . . . . Hacking | -11 -10 -10 -10 -9 -8 -8 -8 -7 -7 -7 -7 -6 -6 -6 -6 -5 --------- Run | Jun Mat Min Exi Min Mat Gar Mat Fac Gar Fac Gar Fac Gar Fac Gar Fac Machines Accessed 82 | . 4 . 2 . 4 2 6 14 1 17 3 16 1 2 2 8 Terminals 46 | . 4 . . . 3 2 5 8 1 6 3 7 1 . 2 4 Fabricators 8 | . . . . . . . . 2 . 1 . 3 . . . 2 Repair Stations 7 | . . . . . . . . . . 3 . 2 . 1 . 1 Recycling Units 9 | . . . . . . . . 2 . 4 . 3 . . . . Scanalyzers 3 | . . . . . . . 1 1 . 1 . . . . . . Garrison Access 7 | . . . . . 1 . . 1 . 2 . 1 . 1 . 1 Total Hacks 296 | . 12 . 2 . 14 3 16 89 1 70 6 55 2 4 3 19 Successful 179 | . 6 . 2 . 5 . 7 66 1 48 3 29 . 3 1 8 Failed 115 | . 5 . . . 9 3 9 22 . 22 3 26 2 1 2 11 Catastrophic 27 | . . . . . 4 3 3 3 . 4 2 6 . . . 2 Database Lockouts 2 | . 1 . . . . . . 1 . . . . . . . . Manual 142 | . 12 . 1 . 12 . 10 27 . 35 3 30 . 1 . 11 Terminals 130 | . 12 . . . 13 3 14 28 1 15 6 23 2 . 3 10 Fabricators 81 | . . . . . . . . 40 . 25 . 11 . . . 5 Repair Stations 17 | . . . . . . . . . . 9 . 4 . 2 . 2 Recycling Units 38 | . . . . . . . . 9 . 14 . 15 . . . . Scanalyzers 14 | . . . . . . . 2 10 . 2 . . . . . . Garrison Access 14 | . . . . . 1 . . 2 . 5 . 2 . 2 . 2 Terminal Hacks 40 | . 4 . 2 . 3 . 3 12 1 2 3 8 . . 1 1 Record 1 | . . . 1 . . . . . . . . . . . . . Part Schematic 4 | . 1 . . . 1 . . 1 . . . 1 . . . . Robot Schematic 8 | . 2 . . . . . 1 3 . . . 2 . . . . Robot Analysis 1 | . . . . . 1 . . . . . . . . . . . Branch Access Points 2 | . . . . . . . 1 1 . . . . . . . . Emergency Access Points 2 | . . . . . . . . . . . 1 . . . 1 . Terminal Index 4 | . . . . . . . . 1 . 1 . 1 . . . 1 Fabricator Index 3 | . . . . . . . . 1 . 1 . 1 . . . . Recycling Unit Index 1 | . . . . . . . . . . . . 1 . . . . Unreport Threat 7 | . 1 . . . 1 . 1 3 . . . 1 . . . . Locate Traps 1 | . . . . . . . . 1 . . . . . . . . Reprogram Traps 1 | . . . . . . . . . . . . 1 . . . . Recall Extermination 1 | . . . . . . . . 1 . . . . . . . . Garrison Registry 2 | . . . . . . . . . 1 . 1 . . . . . Security Stations 1 | . . . . . . . . . . . 1 . . . . . EX-Prototype ID Bank 1 | . . . 1 . . . . . . . . . . . . . Fabricator Hacks 62 | . . . . . . . . 34 . 20 . 5 . . . 3 Load Schematic 31 | . . . . . . . . 17 . 10 . 3 . . . 1 Build 31 | . . . . . . . . 17 . 10 . 2 . . . 2 Repair Station Hacks 7 | . . . . . . . . . . 3 . 2 . 2 . . Scan Component 4 | . . . . . . . . . . 2 . 1 . 1 . . Repair 3 | . . . . . . . . . . 1 . 1 . 1 . . Recycling Unit Hacks 5 | . . . . . . . . 2 . 3 . . . . . . Report Inventory 2 | . . . . . . . . 2 . . . . . . . . Retrieve Components 3 | . . . . . . . . . . 3 . . . . . . Scanalyzer 13 | . . . . . . . 2 9 . 2 . . . . . . Insert Component 7 | . . . . . . . 1 5 . 1 . . . . . . Analyze 6 | . . . . . . . 1 4 . 1 . . . . . . Garrison Access Hacks 10 | . . . . . 1 . . 2 . 4 . 2 . 1 . . Unlock Access 5 | . . . . . 1 . . 1 . 1 . 1 . 1 . . Seal Access 1 | . . . . . . . . . . 1 . . . . . . Coupler Status 4 | . . . . . . . . 1 . 2 . 1 . . . . Unauthorized Hacks 42 | . 2 . . . 1 . 2 7 . 14 . 12 . . . 4 Terminals 18 | . 2 . . . 1 . 2 4 . 4 . 3 . . . 2 Assimilate 3 | . . . . . . . . . . 2 . . . . . 1 Botnet 11 | . 2 . . . 1 . 1 2 . 2 . 2 . . . 1 Detonate 1 | . . . . . . . . 1 . . . . . . . . Operators 3 | . . . . . . . 1 1 . . . 1 . . . . Fabricators 3 | . . . . . . . . 1 . 2 . . . . . . Report 1 | . . . . . . . . . . 1 . . . . . . Prioritize 2 | . . . . . . . . 1 . 1 . . . . . . Repair Stations 2 | . . . . . . . . . . . . 1 . . . 1 Mechanics 2 | . . . . . . . . . . . . 1 . . . 1 Recycling Units 17 | . . . . . . . . 2 . 7 . 8 . . . . Monitor 3 | . . . . . . . . . . 2 . 1 . . . . Reject 4 | . . . . . . . . . . 1 . 3 . . . . Recyclers 2 | . . . . . . . . . . 1 . 1 . . . . Mask 8 | . . . . . . . . 2 . 3 . 3 . . . . Scanalyzers . | . . . . . . . . . . . . . . . . . Garrison Access 2 | . . . . . . . . . . 1 . . . . . 1 Restock 1 | . . . . . . . . . . 1 . . . . . . Reprogram 1 | . . . . . . . . . . . . . . . . 1 Data Cores Recovered . | . . . . . . . . . . . . . . . . . Used . | . . . . . . . . . . . . . . . . . Hacking Detections 69 | . 3 . . . 3 2 6 14 . 15 2 14 1 1 1 7 Full Trace Events 12 | . 1 . . . 2 1 . 2 . . . 4 . . . 2 Feedback Events . | . . . . . . . . . . . . . . . . . Feedback Blocked . | . . . . . . . . . . . . . . . . . Robot Schematics Acquired 8 | . 2 . . . . . 1 3 . . . 2 . . . . Robots Built 58 | . . . . . . . . 32 . 19 . 4 . . . 3 Authchips 26 | . . . . . . . . 16 . 10 . . . . . . Time 1287 | . . . . . . . . 797 . 211 . 168 . . . 111 Total Robot Build Rating 234 | . . . . . . . . 124 . 73 . 24 . . . 13 Part Schematics Acquired 10 | . 1 . . . 1 . 1 5 . 1 . 1 . . . . Parts Built . | . . . . . . . . . . . . . . . . . Authchips . | . . . . . . . . . . . . . . . . . Time . | . . . . . . . . . . . . . . . . . Total Part Build Rating . | . . . . . . . . . . . . . . . . . Parts Repaired 3 | . . . . . . . . . . 1 . 1 . 1 . . Time 72 | . . . . . . . . . . 22 . 12 . 38 . . Parts Recycled . | . . . . . . . . . . . . . . . . . Recycled Matter . | . . . . . . . . . . . . . . . . . Retrieved Matter . | . . . . . . . . . . . . . . . . . Retrieved Components 3 | . . . . . . . . . . 3 . . . . . . Parts Scanalyzed 7 | . . . . . . . 1 5 . 1 . . . . . . Part Schematics Acquired 6 | . . . . . . . 1 4 . 1 . . . . . . Parts Damaged . | . . . . . . . . . . . . . . . . . Bothacking | -11 -10 -10 -10 -9 -8 -8 -8 -7 -7 -7 -7 -6 -6 -6 -6 -5 ------------ Run | Jun Mat Min Exi Min Mat Gar Mat Fac Gar Fac Gar Fac Gar Fac Gar Fac Used RIF Installer 6 | . . . . . . 2 . . 1 . 1 . 1 . 1 . Hotswap 1 | . . . . . . . . . 1 . . . . . . . Threat Obfuscator 1 | . . . . . . . . . . . . . . . 1 . Signal Jammer 1 | . . . . . . . . . . . 1 . . . . . Watcher Feeds 1 | . . . . . . . . . . . . . 1 . . . Alert ID Control 1 | . . . . . . 1 . . . . . . . . . . Robots Hacked 49 | . . . . . . . . 4 . 13 . 15 5 2 4 6 Non-combat 24 | . . . . . . . . 4 . 10 . 8 1 . . 1 Combat 25 | . . . . . . . . . . 3 . 7 4 2 4 5 Robot Hacks Applied 57 | . . . . . . . . 5 . 19 . 16 5 2 4 6 parse_system 1 | . . . . . . . . . . 1 . . . . . . no_distress 1 | . . . . . . . . . . 1 . . . . . . find_chute 2 | . . . . . . . . 1 . . . 1 . . . . ignore_repairs 4 | . . . . . . . . . . 2 . 2 . . . . map_walls 1 | . . . . . . . . . . 1 . . . . . . find_recycling 2 | . . . . . . . . 1 . 1 . . . . . . find_station 2 | . . . . . . . . . . 2 . . . . . . purge_threat 1 | . . . . . . . . . . 1 . . . . . . block_reporting 2 | . . . . . . . . 1 . . . . . . . 1 link_fov 1 | . . . . . . . . . . 1 . . . . . . reboot_system 2 | . . . . . . . . . . . . 1 . . 1 . overwrite_iff 2 | . . . . . . . . . . . . 2 . . . . streamctrl_high 1 | . . . . . . . . . . . . . . . . 1 formatsys_low 11 | . . . . . . . . 2 . 5 . 4 . . . . formatsys_high 22 | . . . . . . . . . . 4 . 6 5 2 3 2 formatsys_deep 2 | . . . . . . . . . . . . . . . . 2 Relay Couplers Released 52 | . . . . . . 4 . . 7 5 17 . 8 . 9 2 Machine Destruction 41 | . . . . . . 4 . . 7 2 13 . 8 . 5 2 Programmers 11 | . . . . . . . . . . 3 4 . . . 4 . Attached 18 | . . . . . . . . 2 . 4 1 4 3 . 2 2 Fabnet Peak Effective % . | . . . . . . . . . . . . . . . . . Robots Rewired 15 | . . . . . . . . . . . . . 7 . 8 . Allies Hacked 19 | . . . . . . . . 3 . 1 5 6 2 . 1 1 Hacks Repelled 2 | . . . . . . . . . . . 1 1 . . . . Allies | -11 -10 -10 -10 -9 -8 -8 -8 -7 -7 -7 -7 -6 -6 -6 -6 -5 -------- Run | Jun Mat Min Exi Min Mat Gar Mat Fac Gar Fac Gar Fac Gar Fac Gar Fac Total Allies 128 | . . 3 . 4 . . . 36 2 29 . 15 12 2 11 14 Largest Group 31 | . . 2 1 5 5 . . 31 29 24 20 14 7 7 7 7 Highest-Rated Group 1013 | . . 46 31 102 102 . . 974 1013 773 676 517 257 228 369 254 Highest-Rated Ally 116 | . . 31 31 31 31 . . 37 80 104 105 105 107 95 116 85 Total Orders 320 | . . . . . . . . 76 13 63 14 79 14 4 50 7 STAY 178 | . . . . . . . . 61 7 44 3 48 4 2 3 6 ROAM 23 | . . . . . . . . . . 1 . . . . 22 . FOLLOW 68 | . . . . . . . . 6 5 7 5 13 4 2 25 1 AID 35 | . . . . . . . . 9 1 9 3 11 2 . . . DROP 5 | . . . . . . . . . . 1 . 3 1 . . . PICKUP 11 | . . . . . . . . . . 1 3 4 3 . . . Ally Attacks 606 | . . 3 . . 20 . . 74 79 102 68 110 18 10 76 46 Total Damage 23530 | . . 25 . . 227 . . 2814 3158 4766 3173 3732 582 128 3307 1618 Kills 191 | . . . . . 2 . . 24 23 32 34 28 5 2 27 14 Allies Corrupted 10 | . . . . . . . . . 1 . 1 2 . 3 1 2 Allies Melted 2 | . . . . . . . . . . 1 . . 1 . . . Intel | -11 -10 -10 -10 -9 -8 -8 -8 -7 -7 -7 -7 -6 -6 -6 -6 -5 ------- Run | Jun Mat Min Exi Min Mat Gar Mat Fac Gar Fac Gar Fac Gar Fac Gar Fac Robot Analysis Total 1 | . . . . . 1 . . . . . . . . . . . Derelict Logs Recovered 3 | . . 2 . 1 . . . . . . . . . . . . Drone Launches . | . . . . . . . . . . . . . . . . . Drone Recoveries . | . . . . . . . . . . . . . . . . . Exploration | -11 -10 -10 -10 -9 -8 -8 -8 -7 -7 -7 -7 -6 -6 -6 -6 -5 ------------- Run | Jun Mat Min Exi Min Mat Gar Mat Fac Gar Fac Gar Fac Gar Fac Gar Fac Turns Passed 34683 | 83 495 978 606 456 301 2034 2330 6726 1444 5905 1363 5185 1856 389 2715 1817 Spaces Moved 16308 | 46 226 501 291 188 107 915 563 3174 767 2813 705 2448 928 228 1487 921 Core 115 | 2 . . . . . . . . . . . . . . . 113 Treads 14783 | 44 226 141 201 188 107 343 179 3174 767 2809 705 2448 928 228 1487 808 Legs 1291 | . . 360 90 . . 572 265 . . 4 . . . . . . Wheels 119 | . . . . . . . 119 . . . . . . . . . Hover . | . . . . . . . . . . . . . . . . . Flight . | . . . . . . . . . . . . . . . . . Fastest Speed 50 | 50 160 120 120 240 160 120 140 159 162 160 162 162 155 152 155 50 Average Speed 170 | 156 160 131 206 240 160 184 293 173 162 163 162 164 156 155 158 150 Slowest Speed 400 | 160 160 160 260 240 240 330 400 239 162 330 162 245 162 156 163 247 Overloaded Moves . | . . . . . . . . . . . . . . . . . Propulsion Burnouts . | . . . . . . . . . . . . . . . . . Robots Hopped . | . . . . . . . . . . . . . . . . . Cave-ins Triggered . | . . . . . . . . . . . . . . . . . Exploration Rate (%) 50 | 4 35 98 69 53 13 78 39 41 83 35 58 29 71 8 95 44 Regions Visited 16 Branch Regions 3 Pre-discovered Areas 3 | . . 1 1 1 . . . . . . . . . . . . Known Exits Taken 5 | . . . . . 1 . . 1 . 1 . 1 . 1 . . Unknown Exits Taken 6 | 1 1 1 1 1 . . 1 . . . . . . . . . Scrap Searched 5 | . . 3 . 2 . . . . . . . . . . . . Spaces Dug 217 | . . 40 . . 14 16 . 1 . 31 . 22 67 . . 26 Terrain Destroyed 775 | . . 70 . . 51 74 3 114 . 37 . 28 293 1 . 104 Melee 39 | . . . . . . . . . . 24 . 14 1 . . . Projectile 54 | . . . . . . . . 4 . 13 . 14 6 1 . 16 AOE 681 | . . 70 . . 51 74 3 110 . . . . 286 . . 87 Terrain Rammed . | . . . . . . . . . . . . . . . . . Walls Destroyed . | . . . . . . . . . . . . . . . . . Machines Disabled . | . . . . . . . . . . . . . . . . . Actions | -11 -10 -10 -10 -9 -8 -8 -8 -7 -7 -7 -7 -6 -6 -6 -6 -5 --------- Run | Jun Mat Min Exi Min Mat Gar Mat Fac Gar Fac Gar Fac Gar Fac Gar Fac Total 21866 | 54 288 805 297 192 174 1160 1103 4173 951 3942 893 3399 1204 259 1798 1174 Wait 3701 | . 21 276 . . 9 86 406 709 114 863 131 716 77 22 219 52 Move 16292 | 45 225 500 290 187 106 913 562 3173 766 2813 704 2447 927 227 1486 921 Hop . | . . . . . . . . . . . . . . . . . Pick Up 217 | 3 5 2 2 3 7 27 8 39 19 36 19 12 13 1 10 11 Fast Attach 75 | 6 1 1 1 . 4 10 12 6 . 13 . 7 3 1 2 8 Attach 110 | . . 2 2 . 4 5 3 31 8 14 . 8 8 . 4 21 Detach 22 | . . 1 . . 1 3 . 6 6 2 . 1 . . . 2 Swap 174 | . . 3 . 1 4 18 7 30 4 25 4 27 22 2 10 17 Drop 142 | . . 3 2 . 1 13 17 27 10 25 10 8 14 1 8 3 Fire 858 | . 35 14 . . 37 75 82 142 24 79 6 98 90 5 55 116 Melee 168 | . . . . . . . . . . 65 19 67 10 . . 7 Ram 2 | . . . . . . . 2 . . . . . . . . . Kick . | . . . . . . . . . . . . . . . . . Crush 43 | . 1 3 . 1 1 . 4 9 . 2 . 3 1 . 2 16 Escape Stasis 12 | . . . . . . 10 . . . . . . . . 2 . Rewire 50 | . . . . . . . . 1 . 5 . 5 39 . . . Trap . | . . . . . . . . . . . . . . . . . Miscellaneous . | . . . . . . . . . . . . . . . . . Route ------- -11/Junkyard -10/Materials (discovered 2 exits: [*Min x2]) -10/Mines (discovered 3 exits: [*Mat x2] / *Exi) -10/Exiles -9/Mines -8/Materials -8/Garrison (discovered 3 exits: *Mat x3) -8/Materials -7/Factory (discovered 7 exits: *Fac x2 / Sto x2 / *Low x2 / Gar) -7/Garrison (discovered 3 exits: *Fac x3) -7/Factory (discovered 2 exits: *Fac / Gar) -7/Garrison (discovered 4 exits: *Fac x3 / [Fac]) -6/Factory (discovered 3 exits: *Fac / [*Ext] / Gar) -6/Garrison (discovered 3 exits: *Fac x3) -6/Factory -6/Garrison (discovered 4 exits: *Fac x3 / [*Fac]) -5/Factory (discovered 2 exits: [*Fac x2]) History --------- Turn | Location | Event 12 | -11/Junkyard | Discovered new exit (range 16) 84 | -11/Junkyard | Entered Materials 211 | -10/Materials | Destroyed 8 combat bots 239 | -10/Materials | Discovered new exit (range 7) 307 | -10/Materials | Build established: Mutant 317 | -10/Materials | Discovered new exit (range 9) 383 | -10/Materials | Central database locked down 579 | -10/Materials | Entered Mines 760 | -10/Mines | Assembled infested the area 765 | -10/Mines | Assisted by a Guerilla fighting off Assembled 876 | -10/Mines | Core integrity fell below 50% 901 | -10/Mines | Discovered new exit (range 7) 1295 | -10/Mines | Found a hidden stash of uninstalled traps 1305 | -10/Mines | Learned location of Storage (-7) 1371 | -10/Mines | Discovered new exit (range 6) 1499 | -10/Mines | Met a Derelict testing a Signal Generator 1549 | -10/Mines | Deemed a non-threat by the Exiles lab entrance 1549 | -10/Mines | Discovered new exit (range 5) 1557 | -10/Mines | Entered Exiles 1557 | -10/Exiles | Accompanied by 1 ally 1590 | -10/Exiles | Met 8R-AWN 1608 | -10/Exiles | Met EX-HEX 1732 | -10/Exiles | Met EX-BIN 1765 | -10/Exiles | Aligned with FarCom system 1768 | -10/Exiles | Given EX-Vault access code 1825 | -10/Exiles | Opened EX-Vault 1844 | -10/Exiles | Found Gui. Plasma Cannon 1891 | -10/Exiles | Warned to stay clear of 0b10 Research branches 1958 | -10/Exiles | Met EX-DEC 1994 | -10/Exiles | Learned location of Zion (-6) 2134 | -10/Exiles | Discovered new exit (range 14) 2163 | -10/Exiles | Left Exiles lab with Gui. Plasma Cannon 2163 | -10/Exiles | Entered Mines 2163 | -9/Mines | Accompanied by 1 ally 2218 | -9/Mines | A weapon hastily lodged in a ceiling crevice suddenly fell to the ground 2265 | -9/Mines | Learned location of Recycling (-7) 2532 | -9/Mines | Assisted by bots powering up and referring to "LRC-V3" 2577 | -9/Mines | Discovered new exit (range 5) 2580 | -9/Mines | Received a Mining Laser from a helpful Derelict 2619 | -9/Mines | Entered Materials 2619 | -8/Materials | Accompanied by 5 allies 2619 | -8/Materials | Evolved 4 slots: Propulsion x3, Utility x1 2679 | -8/Materials | Garrison activated, responded to threat 2704 | -8/Materials | Destroyed 7 combat bots 2874 | -8/Materials | Identified exit to Garrison 2920 | -8/Materials | Entered Garrison 2954 | -8/Garrison | Triggered checkpoint 3072 | -8/Garrison | Installed Relay Interface Framework 3088 | -8/Garrison | Garrison Relay disabled 3127 | -8/Garrison | Build established: Scavenger-Mutant 3153 | -8/Garrison | Expanded RIF knowledge: Alert ID Control 3170 | -8/Garrison | Triggered checkpoint 3194 | -8/Garrison | Triggered checkpoint 3199 | -8/Garrison | Triggered checkpoint 3426 | -8/Garrison | Triggered checkpoint 3463 | -8/Garrison | Discovered new exit (range 15) 3747 | -8/Garrison | Lost 5 parts (1p3n1u) 3762 | -8/Garrison | Triggered checkpoint 3969 | -8/Garrison | Discovered new exit (range 10) 4008 | -8/Garrison | Triggered checkpoint 4204 | -8/Garrison | Discovered new exit (range 13) 4250 | -8/Garrison | Triggered checkpoint 4584 | -8/Garrison | Build established: Hauler-Mutant 4954 | -8/Garrison | Entered Materials 6862 | -8/Materials | Core integrity fell below 50% 7035 | -8/Materials | Discovered new exit (range 4) 7284 | -8/Materials | Entered Factory 7284 | -7/Factory | Evolved 2 slots: Utility x2 7285 | -7/Factory | Identified exit to Storage 8495 | -7/Factory | Destroyed 7 combat bots 8517 | -7/Factory | Discovered new exit (range 20) 9066 | -7/Factory | Discovered new exit (range 4) 9135 | -7/Factory | Central database locked down 9155 | -7/Factory | Build established: Scavenger-Mutant 9431 | -7/Factory | Identified exit to Lower Caves 9672 | -7/Factory | Fabricated Y-54 Guardian? 10313 | -7/Factory | Fabricated O-16 Technician? 10961 | -7/Factory | Fabricated P-60 Hacker? 11078 | -7/Factory | Fabricated Y-54 Guardian? 11200 | -7/Factory | Fabricated Y-54 Guardian? 11267 | -7/Factory | Build established: Commander-Mutant 11726 | -7/Factory | Discovered new exit (range 15) 11801 | -7/Factory | Identified exit to Garrison 12244 | -7/Factory | Fabricated Y-54 Guardian? 12433 | -7/Factory | Fabricated Y-54 Guardian? 12515 | -7/Factory | Fabricated Y-54 Guardian? 12589 | -7/Factory | Fabricated P-60 Hacker? 12825 | -7/Factory | Fabricated Y-54 Guardian? 12916 | -7/Factory | Fabricated Y-54 Guardian? 13035 | -7/Factory | Fabricated Y-54 Guardian? 13111 | -7/Factory | Fabricated Y-54 Guardian? 13228 | -7/Factory | Fabricated Y-54 Guardian (x2) 13322 | -7/Factory | Fabricated Y-54 Guardian? 13437 | -7/Factory | Fabricated Y-54 Guardian (x2) 13730 | -7/Factory | Lost 4 parts (1p2n1w) 13911 | -7/Factory | Fabricated O-24 Administrator? 14010 | -7/Factory | Entered Garrison 14010 | -7/Garrison | Accompanied by 27 allies 14032 | -7/Garrison | Triggered checkpoint 14105 | -7/Garrison | Found embedded Infiltrators 14276 | -7/Garrison | Triggered checkpoint 14284 | -7/Garrison | Triggered checkpoint 14308 | -7/Garrison | Triggered checkpoint 14314 | -7/Garrison | Triggered checkpoint 14434 | -7/Garrison | Triggered checkpoint 14511 | -7/Garrison | Garrison Relay disabled 14562 | -7/Garrison | Discovered new exit (range 3) 15094 | -7/Garrison | Discovered new exit (range 12) 15094 | -7/Garrison | Discovered new exit (range 58) 15094 | -7/Garrison | Discovered new exit (range 66) 15155 | -7/Garrison | Expanded RIF knowledge: Hotswap 15168 | -7/Garrison | Triggered checkpoint 15376 | -7/Garrison | Triggered checkpoint 15454 | -7/Garrison | Entered Factory 15454 | -7/Factory | Accompanied by 21 allies 15720 | -7/Factory | Discovered new exit (range 5) 16269 | -7/Factory | Garrison activated, responded to threat 16705 | -7/Factory | Cargo convoy interrupted 16856 | -7/Factory | Garrison activated, responded to threat 16984 | -7/Factory | Found Prototype Hackware 16984 | -7/Factory | Identified Exp. System Shield 17010 | -7/Factory | Build established: Bothacker-Mutant 17297 | -7/Factory | Repaired Med. Treads 17388 | -7/Factory | Garrison activated, responded to threat 17771 | -7/Factory | Core integrity fell below 50% 19980 | -7/Factory | Fabricated Y-54 Guardian (x2) 20005 | -7/Factory | Fabricated Y-54 Guardian (x2) 20028 | -7/Factory | Fabricated Y-54 Guardian (x2) 20122 | -7/Factory | Fabricated Y-54 Guardian (x2) 20145 | -7/Factory | Fabricated Y-54 Guardian (x2) 20252 | -7/Factory | Fabricated P-60 Hacker (x2) 20339 | -7/Factory | Build established: Commander-Mutant 20655 | -7/Factory | Fabricated M-13 Machinist (x1) 20715 | -7/Factory | Fabricated Y-54 Guardian (x2) 20777 | -7/Factory | Fabricated Y-54 Guardian (x2) 20808 | -7/Factory | Fabricated Y-54 Guardian (x2) 21357 | -7/Factory | Identified exit to Garrison 21359 | -7/Factory | Entered Garrison 21359 | -7/Garrison | Accompanied by 20 allies 21386 | -7/Garrison | Heavy support dispatched to Factory 21447 | -7/Garrison | Triggered checkpoint 21468 | -7/Garrison | Triggered checkpoint 21504 | -7/Garrison | Learned Factory security intel 21535 | -7/Garrison | Discovered new exit (range 12) 21589 | -7/Garrison | Discovered new exit (range 48) 21589 | -7/Garrison | Discovered new exit (range 24) 21589 | -7/Garrison | Discovered new exit (range 32) 21589 | -7/Garrison | Discovered new exit (range 34) 21604 | -7/Garrison | Triggered checkpoint 21683 | -7/Garrison | H-XX Assembler disabled 21922 | -7/Garrison | Triggered checkpoint 21972 | -7/Garrison | Garrison Relay disabled 21980 | -7/Garrison | Triggered checkpoint 22018 | -7/Garrison | Garrison Relay disabled 22433 | -7/Garrison | Expanded RIF knowledge: Signal Jamming 22486 | -7/Garrison | Triggered checkpoint 22530 | -7/Garrison | Garrison Relay disabled 22554 | -7/Garrison | P-60 Hacker assimilated allied Guardian 4*37 22722 | -7/Garrison | Entered Factory 22722 | -6/Factory | Accompanied by 12 allies 22722 | -6/Factory | Evolved 2 slots: Utility x2 22866 | -6/Factory | Build established: Botlord-Mutant 25188 | -6/Factory | Cargo convoy interrupted 25535 | -6/Factory | P-60 Hacker assimilated allied Smith 5b 25623 | -6/Factory | Discovered new exit (range 8) 25841 | -6/Factory | Build established: Bothacker-Mutant 25847 | -6/Factory | Identified exit to Garrison 26046 | -6/Factory | Fabricated Y-64 Sentinel (x2) 26272 | -6/Factory | Fabricated Y-64 Sentinel? 26437 | -6/Factory | Discovered new exit (range 9) 26576 | -6/Factory | Build established: Commander-Mutant 27362 | -6/Factory | Build established: Bothacker-Mutant 27528 | -6/Factory | Repaired Arm. Treads 27711 | -6/Factory | Build established: Botlord-Mutant 27760 | -6/Factory | Garrison activated, responded to threat 27907 | -6/Factory | Entered Garrison 27907 | -6/Garrison | Accompanied by 4 allies 27972 | -6/Garrison | Triggered checkpoint 28184 | -6/Garrison | Lost 5 parts (1p1n2u1w) 28288 | -6/Garrison | Triggered checkpoint 28302 | -6/Garrison | Build established: Bothacker-Mutant 28350 | -6/Garrison | Triggered checkpoint 28352 | -6/Garrison | Destroyed 10 combat bots 28399 | -6/Garrison | Discovered new exit (range 10) 28405 | -6/Garrison | Triggered checkpoint 28501 | -6/Garrison | Triggered checkpoint 28575 | -6/Garrison | Discovered new exit (range 10) 28628 | -6/Garrison | Expanded RIF knowledge: Watcher Feeds 28712 | -6/Garrison | Triggered checkpoint 28756 | -6/Garrison | Garrison Relay disabled 28853 | -6/Garrison | Discovered new exit (range 12) 28898 | -6/Garrison | Triggered checkpoint 28925 | -6/Garrison | Garrison Relay disabled 29078 | -6/Garrison | Triggered checkpoint 29240 | -6/Garrison | Build established: Botlord-Mutant 29763 | -6/Garrison | Entered Factory 29763 | -6/Factory | Accompanied by 7 allies 29844 | -6/Factory | Repaired Arm. Treads? 29877 | -6/Factory | System corruption reached 10% 30148 | -6/Factory | Identified exit to Garrison 30152 | -6/Factory | Entered Garrison 30152 | -6/Garrison | Accompanied by 3 allies 30173 | -6/Garrison | Triggered checkpoint 30192 | -6/Garrison | Discovered new exit (range 6) 30309 | -6/Garrison | Spotted B-75 Beast 30312 | -6/Garrison | Triggered checkpoint 30312 | -6/Garrison | Assimilated Beast 5a with formatsys_high 30334 | -6/Garrison | Triggered checkpoint 30371 | -6/Garrison | Triggered checkpoint 30450 | -6/Garrison | Triggered checkpoint 30505 | -6/Garrison | Garrison Relay disabled 30607 | -6/Garrison | Discovered new exit (range 10) 30637 | -6/Garrison | Rewired B-86 Titan 30660 | -6/Garrison | Spotted B-90 Cyclops 30670 | -6/Garrison | Rewired B-75 Beast 30680 | -6/Garrison | Allies destroyed B-90 Cyclops 30880 | -6/Garrison | Discovered new exit (range 13) 30956 | -6/Garrison | Triggered checkpoint 31156 | -6/Garrison | Triggered checkpoint 31196 | -6/Garrison | Triggered checkpoint 31215 | -6/Garrison | Expanded RIF knowledge: Threat Obfuscation 31380 | -6/Garrison | Found Relay Coupler [Proto] 31471 | -6/Garrison | Discovered new exit (range 11) 31472 | -6/Garrison | Triggered checkpoint 31496 | -6/Garrison | Triggered checkpoint 31876 | -6/Garrison | Triggered checkpoint 32867 | -6/Garrison | Entered Factory 32867 | -5/Factory | Accompanied by 5 allies 32867 | -5/Factory | Evolved 2 slots: Propulsion x1, Utility x1 33222 | -5/Factory | Fabricated R-06 Scavenger? 33253 | -5/Factory | Discovered new exit (range 22) 33366 | -5/Factory | Garrison activated, responded to threat 33410 | -5/Factory | Destroyed 12 combat bots 33467 | -5/Factory | First assault squad dispatched 33532 | -5/Factory | Assimilated ARC 6a with formatsys_deep 33579 | -5/Factory | Assimilated ARC 6b with formatsys_deep 33935 | -5/Factory | Cargo convoy interrupted 33970 | -5/Factory | Found Prototype Launcher 34006 | -5/Factory | Fabricated Y-64 Sentinel? 34127 | -5/Factory | Identified Tesla Bomb Launcher 34221 | -5/Factory | System corruption reached 10% 34274 | -5/Factory | System corruption reached 30% 34324 | -5/Factory | Lost 12 parts (2p3n5u2w) 34563 | -5/Factory | Core integrity fell below 50% 34598 | -5/Factory | Core integrity fell below 20% 34600 | -5/Factory | Lost 15 parts (2p6n3u4w) 34679 | -5/Factory | Discovered new exit (range 7) 34684 | -5/Factory | Destroyed by P-70 Sage with Tesla Rifle Last Messages --------------- 34656_ System corrupted: IFF burst signal emitted. 34656_ Assembly Bed disabled. 34656_ Relay Coupler [Sentry] destroyed. 34659_ B-60 Warrior Imp. Medium Armor Plating blasted off. 34659_ B-60 Warrior destroyed. 34659_ Hvy. Linear Accelerator destroyed. 34660_ Acquired 44 matter. 34662_ Penetrated by Slug. 34667_ ALERT: Significant disruption in Zone 7H, assault force dispatched. 34672_ System corrupted: Energy discharge (-24). 34679_ EXIT=FOUND 34681_ Penetrated by Slug. 34681_ C-30 ARC bursts open, deploying its payload. 34681_ G-67 Veteran unfolds itself. 34681_ G-50 Soldier unfolds itself. 34681_ E-15 Imp unfolds itself. 34682_ Penetrated by Slug. 34682_ Knocked back. 34682_ E-15 Imp destroyed. 34683_ Acquired 1 matter. Map ----- +----------------------------------------------------+ | ????????????????????????????????????????? | | ????????????????????????????????????????? | | ????????????????????????????????????????? | | ????????????????????????????????????????? | | ????????????????????????????????????????? | | ????????????????????????????????????????? | | ????????????????????????????????????????? | | ????????????????????????????????????????? | | ????????????????????????????????????????? | | ????????????????????????????????????????? | | ????????????????????????????????????????? | | ????????????????????????????????????????? | | ????????????????????????????????????????? | | ????????????????????????????????????????? | | ????????????????????????????????????????? | | ????????????????????????????????????????? | | ???????????????????Y????????????????????? | | ????????????????????????????????????????? | | ????????????????????????????????????????? | | ????????????????????????????????????????? | | ????????????#######?????????????????????? | | ????????????# #????????????????###### | | ????????????# ###+###########??# ! | | ????????????# H #??# | | ????????????# #??# = | | ????????????# @ * %gg R #??# | | ????????????# % /= g #??# | | ????????????# = g%g #??# | | ?????????######+;p######### Y #??####/# | | ?????????# #???# g###### | | ?????????# """""" #???# i | | ?????????# """""" #???# ######! | | ?????????# """""" #???# #????## # | | ?????????# """""" ##### #?????# # | | ?????????# / #?????# # | | ?????????# """""" #######+#######? | | ?????????# """""" ## #?! | | ?????????????"""""" ## """""" #? | | ??????????????""""" ## """""" #?# # | | ??????????????? ## """""" #?? ? | | ?????????????? ## """""" #?? ? | | ??????????????########## ?????? ? | | ???????????????????????# """???????? ? | | ???????????????????????# ???????????+? | | ???????????????????????# ????????????? | | ???????????????????????# ?????????????? | | ???????????????????????# ?????????????? | | ???????????????????????# ??????????????? | | ?????????????????????????#??????????????? | | | +----------------------------------------------------+ Best States ------------- Heat Dissipation 102 Energy Generation 25 Energy Capacity 500 Matter Stores 300 Matter Capacity 300 Sight Range 20 Terrain Scan Density 10 Jamming Range 14 Armor Coverage 450 Resistance: TH 10 Weapon Shielding 66 Evasion (%) 55 Recoil Reduction 6 Offensive Hacking 32 Defensive Hacking 26 Relay Coupler Types 4 Relay Coupler Value 73 Authchip Count 16 Item Schematics ----------------- Seismic Detector | -10/Materials | Hacked Hacking Suite | -8/Materials | Hacked System Restoration Module | -8/Materials | Scanalyzed Hcp. Storage Unit | -7/Factory | Scanalyzed Adv. EMP Blaster | -7/Factory | Scanalyzed Com. Wheel | -7/Factory | Scanalyzed Arm. Treads | -7/Factory | Scanalyzed Hvy. Mass Driver | -7/Factory | Hacked Chainsword | -7/Factory | Scanalyzed Lrn. Terrain Scanner | -6/Factory | Hacked Robot Schematics ------------------ M-13 Machinist | -10/Materials | Hacked O-16 Technician | -10/Materials | Hacked O-24 Administrator | -8/Materials | Hacked P-60 Hacker | -7/Factory | Hacked D-53 Grenadier | -7/Factory | Hacked Y-54 Guardian | -7/Factory | Hacked Y-64 Sentinel | -6/Factory | Hacked I-47 Archangel | -6/Factory | Hacked Fabricated ------------ Y-54 Guardian | x2 | -7/Factory | Authchip O-16 Technician | x1 | -7/Factory | Authchip P-60 Hacker | x2 | -7/Factory | Authchip Y-54 Guardian | x2 | -7/Factory | Authchip Y-54 Guardian | x2 | -7/Factory | Authchip Y-54 Guardian | x2 | -7/Factory | Authchip Y-54 Guardian | x2 | -7/Factory | Authchip Y-54 Guardian | x2 | -7/Factory | Authchip P-60 Hacker | x2 | -7/Factory | Authchip Y-54 Guardian | x2 | -7/Factory | Authchip Y-54 Guardian | x2 | -7/Factory | Authchip Y-54 Guardian | x2 | -7/Factory | Authchip Y-54 Guardian | x2 | -7/Factory | Authchip Y-54 Guardian | x2 | -7/Factory | Authchip Y-54 Guardian | x2 | -7/Factory | Authchip Y-54 Guardian | x2 | -7/Factory | Authchip O-24 Administrator | x1 | -7/Factory Y-54 Guardian | x2 | -7/Factory | Authchip Y-54 Guardian | x2 | -7/Factory | Authchip Y-54 Guardian | x2 | -7/Factory | Authchip Y-54 Guardian | x2 | -7/Factory | Authchip Y-54 Guardian | x2 | -7/Factory | Authchip P-60 Hacker | x2 | -7/Factory | Authchip M-13 Machinist | x1 | -7/Factory | Authchip Y-54 Guardian | x2 | -7/Factory | Authchip Y-54 Guardian | x2 | -7/Factory | Authchip Y-54 Guardian | x2 | -7/Factory | Authchip Y-64 Sentinel | x2 | -6/Factory Y-64 Sentinel | x2 | -6/Factory R-06 Scavenger | x1 | -5/Factory | Preloaded Y-64 Sentinel | x2 | -5/Factory Alien Tech Used ----------------- None Achievements -------------- None Challenges ------------ None Game ------ Seed CouplerArmorWand Manual? 0 Play Time 07:08:45 Cumulative 317.9 hours Start 2023.09.14 @ 18:17:46 End 2023.09.16 @ 17:59:11 Sessions 5 Manual Loads 0 Difficulty Rogue Special Mode None Game No. 204 Rogue 201 Adventurer 3 Explorer 0 Win Type - Total 5 Types 4/0/1/0/0/0/0/0/0 Lore% 71 Gallery% 76 Achievement% 64 Wizard Run 0 Options --------- ASCII 0 Keyboard 0 Movement Numpad Keybinds 0 Fullscreen 1 Font 18/SmallcapsGlow Map View 76x50 Tactical HUD 1 Map Filters NONE Filters NONE Steam 1 RUN: 53259c06-100a-4f7a-b9c6-9654bf3063cd